[Event "November 21 Late 2023"]
[Site "https://www.chess.com"]
[Date "2023.11.21"]
[Round "7"]
[White "Herman, Matthew"]
[Black "Broca Jimenez, Fernando"]
[Result "1/2-1/2"]
[Board "126"]
[TimeControl "180+1"]
[WhiteFideId "2028964"]
[BlackFideId "5104742"]
[WhiteElo "2368"]
[BlackElo "2062"]
[WhiteTeam "USA"]
[BlackTeam "MEX"]
[WhiteClock "0:00:08"]
[BlackClock "0:00:15"]

1. e4 {[%clk 0:02:54]}  c5 {[%clk 0:03:00]} 2. Nf3 {[%clk 0:02:54]}  g6 {[%clk 0:02:54]} 3. d4 {[%clk 0:02:53]}  cxd4 {[%clk 0:02:53]} 4. Nxd4 {[%clk 0:02:54]}  Nc6 {[%clk 0:02:53]} 5. Nb3 {[%clk 0:02:53]}  Nf6 {[%clk 0:02:53]} 6. Nc3 {[%clk 0:02:54]}  Bg7 {[%clk 0:02:53]} 7. Be3 {[%clk 0:02:52]}  d6 {[%clk 0:02:53]} 8. Qd2 {[%clk 0:02:51]}  O-O {[%clk 0:02:53]} 9. O-O-O {[%clk 0:02:51]}  Be6 {[%clk 0:02:52]} 10. Kb1 {[%clk 0:02:51]}  Na5 {[%clk 0:02:52]} 11. Nd4 {[%clk 0:02:48]}  Nc4 {[%clk 0:02:45]} 12. Bxc4 {[%clk 0:02:48]}  Bxc4 {[%clk 0:02:46]} 13. Bh6 {[%clk 0:02:45]}  Rc8 {[%clk 0:02:18]} 14. h4 {[%clk 0:02:34]}  Rc5 {[%clk 0:01:25]} 15. f3 {[%clk 0:02:19]}  Bxh6 {[%clk 0:01:02]} 16. Qxh6 {[%clk 0:02:18]}  Rh5 {[%clk 0:01:02]} 17. Qd2 {[%clk 0:02:05]}  Rc5 {[%clk 0:00:58]} 18. g4 {[%clk 0:01:37]}  h5 {[%clk 0:00:47]} 19. gxh5 {[%clk 0:01:36]}  Rxh5 {[%clk 0:00:32]} 20. f4 {[%clk 0:01:22]}  Qa5 {[%clk 0:00:22]} 21. f5 {[%clk 0:01:05]}  Nxe4 {[%clk 0:00:17]} 22. Qe3 {[%clk 0:00:48]}  Nxc3+ {[%clk 0:00:17]} 23. Qxc3 {[%clk 0:00:48]}  Qxc3 {[%clk 0:00:15]} 24. bxc3 {[%clk 0:00:48]}  Kg7 {[%clk 0:00:13]} 25. fxg6 {[%clk 0:00:47]}  fxg6 {[%clk 0:00:14]} 26. Rhe1 {[%clk 0:00:38]}  e5 {[%clk 0:00:15]} 27. Nb3 {[%clk 0:00:38]}  Bxb3 {[%clk 0:00:14]} 28. axb3 {[%clk 0:00:38]}  Rf6 {[%clk 0:00:15]} 29. Re4 {[%clk 0:00:38]}  Rhf5 {[%clk 0:00:14]} 30. Kb2 {[%clk 0:00:37]}  Rf4 {[%clk 0:00:15]} 31. Re3 {[%clk 0:00:12]}  Rxh4 {[%clk 0:00:14]} 32. Ra1 {[%clk 0:00:12]}  a6 {[%clk 0:00:13]} 33. Ra5 {[%clk 0:00:12]}  Rh2 {[%clk 0:00:13]} 34. c4 {[%clk 0:00:11]}  Rff2 {[%clk 0:00:13]} 35. Rc3 {[%clk 0:00:11]}  Rd2 {[%clk 0:00:13]} 36. c5 {[%clk 0:00:11]}  Rd5 {[%clk 0:00:11]} 37. c6 {[%clk 0:00:06]}  bxc6 {[%clk 0:00:11]} 38. Rxa6 {[%clk 0:00:05]}  Rc5 {[%clk 0:00:10]} 39. Rxc5 {[%clk 0:00:05]}  dxc5 {[%clk 0:00:11]} 40. Rxc6 {[%clk 0:00:05]}  e4 {[%clk 0:00:12]} 41. Rxc5 {[%clk 0:00:05]}  e3 {[%clk 0:00:12]} 42. Re5 {[%clk 0:00:05]}  e2 {[%clk 0:00:12]} 43. b4 {[%clk 0:00:05]}  Kf6 {[%clk 0:00:13]} 44. Re8 {[%clk 0:00:05]}  Kf7 {[%clk 0:00:13]} 45. Re3 {[%clk 0:00:05]}  g5 {[%clk 0:00:13]} 46. b5 {[%clk 0:00:05]}  g4 {[%clk 0:00:13]} 47. b6 {[%clk 0:00:04]}  Rh6 {[%clk 0:00:12]} 48. Rxe2 {[%clk 0:00:02]}  Rxb6+ {[%clk 0:00:13]} 49. Kc3 {[%clk 0:00:03]}  Rc6+ {[%clk 0:00:13]} 50. Kd3 {[%clk 0:00:03]}  Kg6 {[%clk 0:00:14]} 51. Re8 {[%clk 0:00:03]}  Kg5 {[%clk 0:00:14]} 52. c4 {[%clk 0:00:03]}  Kf4 {[%clk 0:00:14]} 53. Kd4 {[%clk 0:00:03]}  Rd6+ {[%clk 0:00:14]} 54. Kc5 {[%clk 0:00:03]}  Rd1 {[%clk 0:00:14]} 55. Kb6 {[%clk 0:00:03]}  g3 {[%clk 0:00:15]} 56. Rf8+ {[%clk 0:00:03]}  Ke3 {[%clk 0:00:15]} 57. c5 {[%clk 0:00:04]}  g2 {[%clk 0:00:14]} 58. Rg8 {[%clk 0:00:04]}  g1=Q {[%clk 0:00:14]} 59. Rxg1 {[%clk 0:00:04]}  Rxg1 {[%clk 0:00:14]} 60. c6 {[%clk 0:00:05]}  Rb1+ {[%clk 0:00:14]} 61. Ka7 {[%clk 0:00:05]}  Kd4 {[%clk 0:00:14]} 62. c7 {[%clk 0:00:06]}  Rc1 {[%clk 0:00:14]} 63. Kb8 {[%clk 0:00:06]}  Rb1+ {[%clk 0:00:15]} 64. Ka7 {[%clk 0:00:07]}  Ra1+ {[%clk 0:00:15]} 65. Kb8 {[%clk 0:00:07]}  Rb1+ {[%clk 0:00:15]} 66. Ka7 {[%clk 0:00:08]} 1/2-1/2

[Event "November 21 Late 2023"]
[Site "https://www.chess.com"]
[Date "2023.11.21"]
[Round "7"]
[White "Lopez, Nelson M, Ii"]
[Black "katharinareinecke"]
[Result "1-0"]
[Board "129"]
[TimeControl "180+1"]
[WhiteFideId "2027895"]
[WhiteElo "2268"]
[BlackElo "1983"]
[WhiteTeam "USA"]
[WhiteClock "0:00:54"]
[BlackClock "0:00:32"]

1. e4 {[%clk 0:03:00]}  c6 {[%clk 0:02:59]} 2. d4 {[%clk 0:02:55]}  d5 {[%clk 0:02:59]} 3. Nc3 {[%clk 0:02:56]}  b5 {[%clk 0:02:59]} 4. exd5 {[%clk 0:02:47]}  b4 {[%clk 0:02:58]} 5. Ne4 {[%clk 0:02:47]}  cxd5 {[%clk 0:02:58]} 6. Ng3 {[%clk 0:02:46]}  Nf6 {[%clk 0:02:57]} 7. Nf3 {[%clk 0:02:46]}  e6 {[%clk 0:02:57]} 8. Bd3 {[%clk 0:02:46]}  Nc6 {[%clk 0:02:52]} 9. O-O {[%clk 0:02:46]}  Be7 {[%clk 0:02:48]} 10. Re1 {[%clk 0:02:42]}  O-O {[%clk 0:02:48]} 11. c3 {[%clk 0:02:37]}  a5 {[%clk 0:02:42]} 12. Ne5 {[%clk 0:02:28]}  Bb7 {[%clk 0:02:25]} 13. Bc2 {[%clk 0:02:01]}  bxc3 {[%clk 0:01:54]} 14. bxc3 {[%clk 0:02:02]}  Rc8 {[%clk 0:01:54]} 15. Nh5 {[%clk 0:01:57]}  Ne4 {[%clk 0:01:48]} 16. Nxg7 {[%clk 0:01:30]}  Kxg7 {[%clk 0:01:41]} 17. Qg4+ {[%clk 0:01:24]}  Kh8 {[%clk 0:01:21]} 18. Bh6 {[%clk 0:01:23]}  Bf6 {[%clk 0:01:21]} 19. Rxe4 {[%clk 0:01:00]}  dxe4 {[%clk 0:01:15]} 20. Qxe4 {[%clk 0:00:56]}  Nxe5 {[%clk 0:00:32]} 21. Qxh7# {[%clk 0:00:54]} 1-0

[Event "November 21 Late 2023"]
[Site "https://www.chess.com"]
[Date "2023.11.21"]
[Round "7"]
[White "Tsiolakidis, Anastasios"]
[Black "Thake, Conrad"]
[Result "1-0"]
[Board "130"]
[TimeControl "180+1"]
[WhiteFideId "4201477"]
[BlackFideId "5602947"]
[WhiteElo "2265"]
[BlackElo "1685"]
[WhiteTeam "GRE"]
[BlackTeam "MLT"]
[WhiteClock "0:01:53"]
[BlackClock "0:00:04"]

1. e4 {[%clk 0:03:00]}  e6 {[%clk 0:02:59]} 2. Nf3 {[%clk 0:03:00]}  d5 {[%clk 0:02:58]} 3. Nc3 {[%clk 0:03:01]}  d4 {[%clk 0:02:58]} 4. Ne2 {[%clk 0:03:00]}  c5 {[%clk 0:02:58]} 5. c3 {[%clk 0:03:00]}  dxc3 {[%clk 0:02:55]} 6. bxc3 {[%clk 0:02:59]}  Nc6 {[%clk 0:02:54]} 7. d4 {[%clk 0:02:59]}  cxd4 {[%clk 0:02:53]} 8. cxd4 {[%clk 0:03:00]}  Nf6 {[%clk 0:02:49]} 9. e5 {[%clk 0:03:00]}  Nd5 {[%clk 0:02:49]} 10. g3 {[%clk 0:02:52]}  Bb4+ {[%clk 0:02:48]} 11. Bd2 {[%clk 0:02:53]}  Qa5 {[%clk 0:02:45]} 12. Bg2 {[%clk 0:02:52]}  Bxd2+ {[%clk 0:02:41]} 13. Qxd2 {[%clk 0:02:46]}  Qxd2+ {[%clk 0:02:41]} 14. Kxd2 {[%clk 0:02:47]}  O-O {[%clk 0:02:34]} 15. Nc3 {[%clk 0:02:37]}  Nxc3 {[%clk 0:02:29]} 16. Kxc3 {[%clk 0:02:36]}  Bd7 {[%clk 0:02:22]} 17. Rab1 {[%clk 0:02:34]}  Rac8 {[%clk 0:02:16]} 18. Kd3 {[%clk 0:02:30]}  b6 {[%clk 0:02:15]} 19. Rhc1 {[%clk 0:02:29]}  Na5 {[%clk 0:02:14]} 20. Nd2 {[%clk 0:02:25]}  Rxc1 {[%clk 0:02:07]} 21. Rxc1 {[%clk 0:02:24]}  Bb5+ {[%clk 0:02:06]} 22. Ke3 {[%clk 0:02:22]}  g6 {[%clk 0:01:46]} 23. Rc7 {[%clk 0:02:17]}  a6 {[%clk 0:01:45]} 24. Ne4 {[%clk 0:02:13]}  Kg7 {[%clk 0:01:32]} 25. Nd6 {[%clk 0:02:10]}  h5 {[%clk 0:01:04]} 26. f4 {[%clk 0:02:03]}  Ba4 {[%clk 0:00:51]} 27. d5 {[%clk 0:01:58]}  exd5 {[%clk 0:00:32]} 28. Bxd5 {[%clk 0:01:57]}  Bd1 {[%clk 0:00:14]} 29. Nxf7 {[%clk 0:01:55]}  b5 {[%clk 0:00:06]} 30. Ng5+ {[%clk 0:01:54]}  Kh8 {[%clk 0:00:04]} 31. Rh7# {[%clk 0:01:53]} 1-0

[Event "November 21 Late 2023"]
[Site "https://www.chess.com"]
[Date "2023.11.21"]
[Round "7"]
[White "Awoki, Daniel Teidi"]
[Black "Vargas, Mauricio"]
[Result "1-0"]
[Board "131"]
[TimeControl "180+1"]
[WhiteFideId "2100827"]
[BlackFideId "4404572"]
[WhiteElo "2077"]
[BlackElo "1988"]
[WhiteTeam "BRA"]
[BlackTeam "COL"]
[WhiteClock "0:02:38"]
[BlackClock "0:02:01"]

1. e4 {[%clk 0:03:00]}  d5 {[%clk 0:02:57]} 2. exd5 {[%clk 0:03:00]}  Qxd5 {[%clk 0:02:58]} 3. Nc3 {[%clk 0:03:00]}  Qa5 {[%clk 0:02:58]} 4. Bc4 {[%clk 0:03:01]}  c6 {[%clk 0:02:58]} 5. d3 {[%clk 0:03:01]}  Nf6 {[%clk 0:02:58]} 6. Ne2 {[%clk 0:03:02]}  Bg4 {[%clk 0:02:58]} 7. O-O {[%clk 0:03:03]}  e6 {[%clk 0:02:56]} 8. f3 {[%clk 0:03:03]}  Bh5 {[%clk 0:02:53]} 9. Ng3 {[%clk 0:03:04]}  Bg6 {[%clk 0:02:52]} 10. f4 {[%clk 0:03:05]}  h5 {[%clk 0:02:49]} 11. f5 {[%clk 0:03:02]}  exf5 {[%clk 0:02:43]} 12. Qe2+ {[%clk 0:03:02]}  Be7 {[%clk 0:02:40]} 13. Bd2 {[%clk 0:03:01]}  h4 {[%clk 0:02:38]} 14. Nd5 {[%clk 0:02:53]}  Nxd5 {[%clk 0:02:31]} 15. Bxa5 {[%clk 0:02:51]}  b6 {[%clk 0:02:24]} 16. Bb4 {[%clk 0:02:47]}  hxg3 {[%clk 0:02:21]} 17. Bxd5 {[%clk 0:02:46]}  gxh2+ {[%clk 0:02:21]} 18. Kh1 {[%clk 0:02:46]}  O-O {[%clk 0:02:15]} 19. Bxe7 {[%clk 0:02:44]}  Re8 {[%clk 0:02:15]} 20. Bf3 {[%clk 0:02:42]}  f6 {[%clk 0:02:02]} 21. Rae1 {[%clk 0:02:38]}  Kf7 {[%clk 0:02:01]} 22. Qe6# {[%clk 0:02:38]} 1-0

[Event "November 21 Late 2023"]
[Site "https://www.chess.com"]
[Date "2023.11.21"]
[Round "7"]
[White "Souza, Gustavo Horokoski De"]
[Black "Burke, Paul"]
[Result "1-0"]
[Board "133"]
[TimeControl "180+1"]
[WhiteFideId "2146584"]
[BlackFideId "2605767"]
[WhiteElo "1824"]
[BlackElo "1849"]
[WhiteTeam "BRA"]
[BlackTeam "CAN"]
[WhiteClock "0:00:20"]
[BlackClock "0:00:00"]

1. d4 {[%clk 0:03:00]}  a6 {[%clk 0:02:56]} 2. c4 {[%clk 0:02:59]}  d6 {[%clk 0:02:56]} 3. Nc3 {[%clk 0:02:58]}  g6 {[%clk 0:02:57]} 4. e4 {[%clk 0:02:58]}  h6 {[%clk 0:02:57]} 5. Be2 {[%clk 0:02:58]}  Bg7 {[%clk 0:02:57]} 6. Be3 {[%clk 0:02:59]}  Nd7 {[%clk 0:02:57]} 7. Qd2 {[%clk 0:02:59]}  e5 {[%clk 0:02:57]} 8. d5 {[%clk 0:02:57]}  Ne7 {[%clk 0:02:57]} 9. f3 {[%clk 0:02:51]}  f5 {[%clk 0:02:56]} 10. Rc1 {[%clk 0:02:32]}  f4 {[%clk 0:02:55]} 11. Bf2 {[%clk 0:02:32]}  O-O {[%clk 0:02:49]} 12. b4 {[%clk 0:02:30]}  Nf6 {[%clk 0:02:44]} 13. Bd3 {[%clk 0:02:28]}  g5 {[%clk 0:02:33]} 14. Nge2 {[%clk 0:02:25]}  Qe8 {[%clk 0:02:32]} 15. c5 {[%clk 0:02:24]}  h5 {[%clk 0:02:19]} 16. b5 {[%clk 0:02:10]}  Ng6 {[%clk 0:02:08]} 17. b6 {[%clk 0:02:02]}  cxb6 {[%clk 0:02:04]} 18. cxd6 {[%clk 0:02:01]}  g4 {[%clk 0:01:59]} 19. Bxb6 {[%clk 0:01:57]}  gxf3 {[%clk 0:01:51]} 20. gxf3 {[%clk 0:01:57]}  Bd7 {[%clk 0:01:50]} 21. Rg1 {[%clk 0:01:53]}  Kh7 {[%clk 0:01:50]} 22. a3 {[%clk 0:01:23]}  Nh4 {[%clk 0:01:49]} 23. Kf2 {[%clk 0:01:17]}  Rc8 {[%clk 0:01:37]} 24. Na2 {[%clk 0:01:15]}  Rxc1 {[%clk 0:01:34]} 25. Qxc1 {[%clk 0:01:16]}  Qf7 {[%clk 0:01:30]} 26. Qc7 {[%clk 0:01:13]}  Rc8 {[%clk 0:00:46]} 27. Qxb7 {[%clk 0:01:09]}  Ng4+ {[%clk 0:00:16]} 28. fxg4 {[%clk 0:00:58]}  f3 {[%clk 0:00:16]} 29. Ng3 {[%clk 0:00:45]}  hxg4 {[%clk 0:00:11]} 30. Nf5 {[%clk 0:00:24]}  Nxf5 {[%clk 0:00:08]} 31. exf5 {[%clk 0:00:25]}  Bf6 {[%clk 0:00:00]} 32. Rxg4 {[%clk 0:00:20]} 1-0

[Event "November 21 Late 2023"]
[Site "https://www.chess.com"]
[Date "2023.11.21"]
[Round "7"]
[White "Ramos Espinoza, Efren Andres"]
[Black "Manfroi, Alexander Giannini"]
[Result "1-0"]
[Board "134"]
[TimeControl "180+1"]
[WhiteFideId "6100538"]
[BlackFideId "22739335"]
[WhiteElo "2210"]
[BlackElo "1618"]
[WhiteTeam "PAN"]
[BlackTeam "BRA"]
[WhiteClock "0:02:38"]
[BlackClock "0:02:25"]

1. d4 {[%clk 0:03:00]}  Nf6 {[%clk 0:02:59]} 2. Nf3 {[%clk 0:02:58]}  e6 {[%clk 0:03:00]} 3. g3 {[%clk 0:02:57]}  c5 {[%clk 0:02:57]} 4. Bg2 {[%clk 0:02:57]}  Nc6 {[%clk 0:02:56]} 5. O-O {[%clk 0:02:57]}  d5 {[%clk 0:02:55]} 6. b3 {[%clk 0:02:51]}  g6 {[%clk 0:02:48]} 7. dxc5 {[%clk 0:02:48]}  Bxc5 {[%clk 0:02:43]} 8. Bb2 {[%clk 0:02:49]}  O-O {[%clk 0:02:42]} 9. Nbd2 {[%clk 0:02:48]}  Re8 {[%clk 0:02:42]} 10. a3 {[%clk 0:02:45]}  Rb8 {[%clk 0:02:41]} 11. e3 {[%clk 0:02:40]}  Bf8 {[%clk 0:02:41]} 12. c4 {[%clk 0:02:39]}  Ne7 {[%clk 0:02:25]} 13. Bxf6 {[%clk 0:02:38]} 1-0

[Event "November 21 Late 2023"]
[Site "https://www.chess.com"]
[Date "2023.11.21"]
[Round "8"]
[White "Andreikin, Dmitry"]
[Black "Bortnyk, Olexandr"]
[Result "0-1"]
[Board "4"]
[TimeControl "180+1"]
[WhiteFideId "4158814"]
[BlackFideId "14120828"]
[WhiteElo "2741"]
[BlackElo "2725"]
[WhiteTeam "FID"]
[BlackTeam "UKR"]
[WhiteClock "0:00:00"]
[BlackClock "0:00:12"]

1. d4 {[%clk 0:03:00]}  Nf6 {[%clk 0:02:55]} 2. c4 {[%clk 0:03:01]}  d6 {[%clk 0:02:51]} 3. Nc3 {[%clk 0:02:59]}  g6 {[%clk 0:02:51]} 4. e4 {[%clk 0:02:58]}  Bg7 {[%clk 0:02:52]} 5. h3 {[%clk 0:02:59]}  O-O {[%clk 0:02:51]} 6. Be3 {[%clk 0:03:00]}  e5 {[%clk 0:02:49]} 7. d5 {[%clk 0:02:59]}  Na6 {[%clk 0:02:49]} 8. Bd3 {[%clk 0:02:59]}  c6 {[%clk 0:02:49]} 9. Nge2 {[%clk 0:02:58]}  cxd5 {[%clk 0:02:32]} 10. cxd5 {[%clk 0:02:58]}  Bd7 {[%clk 0:02:31]} 11. O-O {[%clk 0:02:54]}  Nh5 {[%clk 0:02:29]} 12. Qb3 {[%clk 0:02:49]}  Nc5 {[%clk 0:02:19]} 13. Bxc5 {[%clk 0:02:48]}  dxc5 {[%clk 0:02:20]} 14. Qxb7 {[%clk 0:02:40]}  Nf4 {[%clk 0:02:19]} 15. Rfd1 {[%clk 0:02:24]}  Rb8 {[%clk 0:01:50]} 16. Qxa7 {[%clk 0:02:23]}  Bxh3 {[%clk 0:01:51]} 17. g3 {[%clk 0:02:13]}  Qg5 {[%clk 0:01:33]} 18. Qxc5 {[%clk 0:02:05]}  Rxb2 {[%clk 0:01:28]} 19. d6 {[%clk 0:01:55]}  Qg4 {[%clk 0:01:17]} 20. Qe3 {[%clk 0:00:41]}  Bg2 {[%clk 0:01:05]} 21. Bc4 {[%clk 0:00:12]}  Bf3 {[%clk 0:00:35]} 22. d7 {[%clk 0:00:08]}  Bf6 {[%clk 0:00:31]} 23. Nxf4 {[%clk 0:00:04]}  exf4 {[%clk 0:00:20]} 24. Nd5 {[%clk 0:00:05]}  Bg5 {[%clk 0:00:13]} 25. Qxf4 {[%clk 0:00:00]}  Qh5 {[%clk 0:00:12]} 0-1

[Event "November 21 Late 2023"]
[Site "https://www.chess.com"]
[Date "2023.11.21"]
[Round "8"]
[White "Erigaisi Arjun"]
[Black "Kovalev, Vladislav"]
[Result "1-0"]
[Board "5"]
[TimeControl "180+1"]
[WhiteFideId "35009192"]
[BlackFideId "13504398"]
[WhiteElo "2729"]
[BlackElo "2539"]
[WhiteTeam "IND"]
[BlackTeam "FID"]
[WhiteClock "0:01:42"]
[BlackClock "0:00:08"]

1. c4 {[%clk 0:03:00]}  g6 {[%clk 0:02:59]} 2. Nc3 {[%clk 0:03:01]}  Bg7 {[%clk 0:03:00]} 3. g3 {[%clk 0:03:02]}  e5 {[%clk 0:03:00]} 4. Bg2 {[%clk 0:03:02]}  d6 {[%clk 0:03:00]} 5. Nf3 {[%clk 0:03:03]}  f5 {[%clk 0:03:01]} 6. d3 {[%clk 0:03:03]}  Nf6 {[%clk 0:03:01]} 7. O-O {[%clk 0:03:03]}  O-O {[%clk 0:03:02]} 8. b4 {[%clk 0:03:04]}  Nc6 {[%clk 0:03:01]} 9. b5 {[%clk 0:03:03]}  Ne7 {[%clk 0:03:02]} 10. a4 {[%clk 0:03:02]}  h6 {[%clk 0:03:02]} 11. a5 {[%clk 0:03:02]}  Rb8 {[%clk 0:03:01]} 12. Qb3 {[%clk 0:02:52]}  Kh8 {[%clk 0:02:58]} 13. b6 {[%clk 0:02:48]}  axb6 {[%clk 0:02:56]} 14. axb6 {[%clk 0:02:49]}  c6 {[%clk 0:02:42]} 15. c5 {[%clk 0:02:45]}  dxc5 {[%clk 0:01:20]} 16. Nxe5 {[%clk 0:02:44]}  Nfd5 {[%clk 0:01:21]} 17. Nxd5 {[%clk 0:02:34]}  cxd5 {[%clk 0:01:07]} 18. Bb2 {[%clk 0:02:16]}  Qd6 {[%clk 0:00:54]} 19. d4 {[%clk 0:02:16]}  c4 {[%clk 0:00:34]} 20. Qc3 {[%clk 0:02:16]}  Qe6 {[%clk 0:00:31]} 21. Ba3 {[%clk 0:02:09]}  Re8 {[%clk 0:00:31]} 22. Bxe7 {[%clk 0:02:09]}  Rxe7 {[%clk 0:00:32]} 23. Bxd5 {[%clk 0:02:09]}  Qxb6 {[%clk 0:00:25]} 24. Rfb1 {[%clk 0:02:04]}  Qd6 {[%clk 0:00:15]} 25. Nf7+ {[%clk 0:02:02]}  Rxf7 {[%clk 0:00:15]} 26. Bxf7 {[%clk 0:02:03]}  Bxd4 {[%clk 0:00:16]} 27. Qxc4 {[%clk 0:01:49]}  Bxa1 {[%clk 0:00:15]} 28. Rxa1 {[%clk 0:01:50]}  Bd7 {[%clk 0:00:15]} 29. Bd5 {[%clk 0:01:44]}  Bc6 {[%clk 0:00:12]} 30. Qd4+ {[%clk 0:01:42]}  Kh7 {[%clk 0:00:08]} 31. Bg8+ {[%clk 0:01:42]} 1-0

[Event "November 21 Late 2023"]
[Site "https://www.chess.com"]
[Date "2023.11.21"]
[Round "8"]
[White "Krysa, Leandro"]
[Black "Theodorou, Nikolas"]
[Result "0-1"]
[Board "6"]
[TimeControl "180+1"]
[WhiteFideId "116807"]
[BlackFideId "4262875"]
[WhiteElo "2495"]
[BlackElo "2525"]
[WhiteTeam "ARG"]
[BlackTeam "GRE"]
[WhiteClock "0:00:26"]
[BlackClock "0:01:13"]

1. e4 {[%clk 0:03:00]}  e5 {[%clk 0:02:59]} 2. Nf3 {[%clk 0:03:00]}  Nc6 {[%clk 0:03:00]} 3. Bc4 {[%clk 0:03:00]}  Nf6 {[%clk 0:03:00]} 4. d3 {[%clk 0:03:00]}  Bc5 {[%clk 0:03:00]} 5. O-O {[%clk 0:02:59]}  a6 {[%clk 0:03:00]} 6. Nc3 {[%clk 0:02:58]}  h6 {[%clk 0:02:58]} 7. h3 {[%clk 0:02:52]}  O-O {[%clk 0:02:57]} 8. Be3 {[%clk 0:02:49]}  d6 {[%clk 0:02:57]} 9. a4 {[%clk 0:02:47]}  Be6 {[%clk 0:02:57]} 10. Bxe6 {[%clk 0:02:42]}  fxe6 {[%clk 0:02:58]} 11. Ne2 {[%clk 0:02:34]}  Bxe3 {[%clk 0:02:51]} 12. fxe3 {[%clk 0:02:35]}  d5 {[%clk 0:02:52]} 13. Ng3 {[%clk 0:02:34]}  Qd6 {[%clk 0:02:52]} 14. c3 {[%clk 0:02:33]}  Rad8 {[%clk 0:02:44]} 15. b4 {[%clk 0:02:29]}  Ne7 {[%clk 0:02:24]} 16. Qe2 {[%clk 0:02:09]}  Ng6 {[%clk 0:02:24]} 17. a5 {[%clk 0:02:09]}  Kh7 {[%clk 0:02:22]} 18. Kh2 {[%clk 0:02:08]}  Rf7 {[%clk 0:02:20]} 19. Rad1 {[%clk 0:02:00]}  c5 {[%clk 0:02:17]} 20. Qb2 {[%clk 0:01:55]}  Qc7 {[%clk 0:01:46]} 21. Qa3 {[%clk 0:01:37]}  Rc8 {[%clk 0:01:41]} 22. Rc1 {[%clk 0:01:26]}  Rd7 {[%clk 0:01:40]} 23. Rfd1 {[%clk 0:01:20]}  Rcd8 {[%clk 0:01:40]} 24. exd5 {[%clk 0:01:17]}  e4 {[%clk 0:01:33]} 25. d6 {[%clk 0:01:08]}  Rxd6 {[%clk 0:01:28]} 26. bxc5 {[%clk 0:01:05]}  Rxd3 {[%clk 0:01:23]} 27. Rxd3 {[%clk 0:01:02]}  Rxd3 {[%clk 0:01:24]} 28. Rf1 {[%clk 0:00:26]}  Nh5 {[%clk 0:01:13]} 0-1

[Event "November 21 Late 2023"]
[Site "https://www.chess.com"]
[Date "2023.11.21"]
[Round "8"]
[White "Remizov, Yaroslav"]
[Black "Bortnyk, Mykola"]
[Result "0-1"]
[Board "9"]
[TimeControl "180+1"]
[WhiteFideId "34134015"]
[BlackFideId "14120836"]
[WhiteElo "2420"]
[BlackElo "2592"]
[WhiteTeam "RUS"]
[BlackTeam "UKR"]
[WhiteClock "0:00:01"]
[BlackClock "0:00:19"]

1. e4 {[%clk 0:03:00]}  Nf6 {[%clk 0:02:59]} 2. e5 {[%clk 0:03:00]}  Nd5 {[%clk 0:02:59]} 3. Nc3 {[%clk 0:03:00]}  Nb6 {[%clk 0:02:59]} 4. d4 {[%clk 0:03:00]}  d6 {[%clk 0:03:00]} 5. f4 {[%clk 0:03:00]}  g6 {[%clk 0:03:00]} 6. Nf3 {[%clk 0:03:00]}  Bg7 {[%clk 0:03:01]} 7. Be2 {[%clk 0:02:58]}  O-O {[%clk 0:03:01]} 8. O-O {[%clk 0:02:58]}  c5 {[%clk 0:03:02]} 9. dxc5 {[%clk 0:02:53]}  dxc5 {[%clk 0:03:03]} 10. Be3 {[%clk 0:02:51]}  Qc7 {[%clk 0:02:55]} 11. Nd2 {[%clk 0:02:30]}  Be6 {[%clk 0:02:44]} 12. a4 {[%clk 0:02:18]}  Rd8 {[%clk 0:02:38]} 13. Qe1 {[%clk 0:02:14]}  Nc6 {[%clk 0:02:32]} 14. a5 {[%clk 0:02:06]}  Nd5 {[%clk 0:02:25]} 15. Nxd5 {[%clk 0:02:06]}  Bxd5 {[%clk 0:02:26]} 16. c3 {[%clk 0:02:03]}  Nxa5 {[%clk 0:02:17]} 17. Bf3 {[%clk 0:01:44]}  Nc6 {[%clk 0:02:04]} 18. Ne4 {[%clk 0:01:41]}  b6 {[%clk 0:01:58]} 19. Qh4 {[%clk 0:01:41]}  Bxe4 {[%clk 0:01:52]} 20. Bxe4 {[%clk 0:01:41]}  e6 {[%clk 0:01:53]} 21. Bxc6 {[%clk 0:01:34]}  Qxc6 {[%clk 0:01:53]} 22. Rxa7 {[%clk 0:01:34]}  Qe4 {[%clk 0:01:45]} 23. Re1 {[%clk 0:01:32]}  Qf5 {[%clk 0:01:35]} 24. g4 {[%clk 0:01:11]}  Qd3 {[%clk 0:01:18]} 25. Rxa8 {[%clk 0:00:43]}  Rxa8 {[%clk 0:01:19]} 26. g5 {[%clk 0:00:41]}  Bf8 {[%clk 0:01:10]} 27. Qf2 {[%clk 0:00:41]}  b5 {[%clk 0:01:06]} 28. Qe2 {[%clk 0:00:39]}  Qf5 {[%clk 0:00:59]} 29. Qxb5 {[%clk 0:00:30]}  Qg4+ {[%clk 0:00:59]} 30. Kh1 {[%clk 0:00:30]}  Qf3+ {[%clk 0:00:46]} 31. Kg1 {[%clk 0:00:30]}  Ra2 {[%clk 0:00:43]} 32. Qe2 {[%clk 0:00:29]}  Qb7 {[%clk 0:00:43]} 33. Bc1 {[%clk 0:00:20]}  Ra4 {[%clk 0:00:38]} 34. Qg2 {[%clk 0:00:18]}  Qd7 {[%clk 0:00:35]} 35. Qc2 {[%clk 0:00:16]}  Ra1 {[%clk 0:00:33]} 36. Rd1 {[%clk 0:00:16]}  Qb7 {[%clk 0:00:31]} 37. Qe2 {[%clk 0:00:12]}  c4 {[%clk 0:00:28]} 38. Be3 {[%clk 0:00:10]}  Ra2 {[%clk 0:00:27]} 39. Rd2 {[%clk 0:00:10]}  Kg7 {[%clk 0:00:26]} 40. Bd4 {[%clk 0:00:05]}  h5 {[%clk 0:00:22]} 41. gxh6+ {[%clk 0:00:05]}  Kh7 {[%clk 0:00:23]} 42. h4 {[%clk 0:00:03]}  Bxh6 {[%clk 0:00:24]} 43. h5 {[%clk 0:00:03]}  Bxf4 {[%clk 0:00:21]} 44. hxg6+ {[%clk 0:00:03]}  fxg6 {[%clk 0:00:22]} 45. Rc2 {[%clk 0:00:03]}  Ra1+ {[%clk 0:00:21]} 46. Kf2 {[%clk 0:00:04]}  Qh1 {[%clk 0:00:19]} 47. Qf3 {[%clk 0:00:01]}  Rf1+ {[%clk 0:00:19]} 0-1